[Event "31st MPL National U18G Chess-ch 2022"]
[Site "Pollachi"]
[Date "2022.04.23"]
[Round "11.6"]
[White "Ishvi Aggarwal"]
[Black "Keerthana B"]
[Result "1-0"]
[ECO "E04"]
[WhiteElo "1833"]
[BlackElo "1311"]
[Annotator "NA RC COMBH"]
[PlyCount "59"]
[EventDate "2022.04.18"]
[EventCountry "IND"]
[SourceTitle "playchess.com"]
[Source "ChessBase"]
[SourceQuality "1"]
[TimeControl "5400+30"]

{[%evp 14,59,81,57,111,110,177,158,199,32767,32767,203,187,207,365,412,551,420,465,456,500,212,273,153,297,117,135,129,281,242,499,530,756,793,751,810,1045,754,29995,29996,29996,2458,1365,1261,1135,896,981,1022]} 1. d4 {[%emt 0:00:02]} Nf6 {[%emt 0:00:04]} 2. c4 {[%emt 0:00:03]} e6 {[%emt 0:00:12]} 3. g3 {[%emt 0:00:03]} d5 {[%emt 0:00:33]} 4. Nf3 {[%emt 0:00:03]} Nbd7 {[%emt 0:01:00]} 5. Bg2 {[%emt 0:00:05]} dxc4 {[%emt 0:00:13]} 6. O-O {[%emt 0:00:39]} c6 {[%emt 0:01:38] The modern move.} 7. a4 {[%emt 0:00:22]} Bd6 {[%emt 0:02:07]} (7... a5 $14 {deserves consideration.}) 8. Nfd2 {[%emt 0:00:55] [#]} Qe7 $146 {[%emt 0:02:56]} (8... Bc7 $14) ({Predecessor:} 8... e5 9. Nxc4 Bc7 10. b3 exd4 11. Qxd4 O-O 12. Rd1 Nb6 13. Qxd8 Rxd8 14. Rxd8+ Bxd8 15. Nd6 {1-0 (50) Beydullayeva,G (2263)-Schneider,J (2270) Tornelo INT 2020}) 9. Nxc4 {[%emt 0:00:12]} Bc7 {[%emt 0:00:03] [#]} (9... O-O $16) 10. b3 $1 {[%emt 0:01:02]} e5 {[%emt 0:03:26]} 11. Ba3 {[%emt 0:00:55]} Qe6 {[%emt 0:02:34]} 12. e4 {[%emt 0:04:58]} exd4 {[%emt 0:09:36]} 13. Qxd4 {[%emt 0:00:13]} Nb6 {[%emt 0:01:01]} (13... c5 $142 14. Bxc5 Nxc5 15. Qxc5 Qe7 16. Qxe7+ Kxe7) 14. Nbd2 {[%emt 0:01:09]} Qd7 {[%emt 0:02:48]} 15. Qc3 {[%emt 0:03:05]} Qe6 {[%emt 0:02:03]} 16. Rad1 {[%emt 0:02:25]} Bd7 {[%emt 0:05:08]} 17. Qe3 {[%emt 1:22:49]} (17. f4 $142 O-O-O 18. f5) 17... Ng4 {[%emt 0:05:31]} 18. Qg5 {[%emt 0:00:00]} ({Better is} 18. Qd4 $18) 18... h5 {[%emt 0:03:34]} (18... f6 $142 19. Qxg7 O-O-O) 19. Qxg7 $2 {[%emt 0:00:00]} (19. e5 $18 {is more deadly.} f6 20. exf6 (20. Qxg7 Rg8 $18) 20... gxf6 21. Qg6+ Qf7 22. Qe4+ Qe6 23. Rfe1 Qxe4 24. Nxe4) 19... O-O-O {[%emt 0:55:33]} 20. h4 {[%emt 0:00:00]} Rdg8 {[%emt 0:00:00]} (20... f6 $16 21. Nb2 Rdg8) 21. Qd4 {[%emt 0:02:00]} Nxf2 $2 {[%emt 0:00:00]} (21... Kb8 {was called for.} 22. a5 Nxc4 23. Nxc4 Bc8) 22. Rxf2 {[%emt 0:00:00]} Bxg3 $18 {[%emt 0:00:00]} 23. Nxb6+ {[%emt 0:00:00]} axb6 {[%emt 0:00:00]} 24. Nc4 {[%emt 0:00:00]} Bxf2+ {[%emt 0:00:00]} 25. Qxf2 {[%emt 0:00:00]} Be8 {[%emt 0:00:00]} 26. Nxb6+ {[%emt 0:00:00]} Kc7 {[%emt 0:00:00]} 27. Bd6+ {[%emt 0:00:00]} (27. Na8+ $142 Kc8 {[#]} 28. Rd8+ $3 {[%mdl 512]} Kxd8 29. Qb6+ Kd7 30. Qc7#) 27... Qxd6 {[%emt 0:00:00]} 28. Rxd6 {[%emt 0:00:00]} Kxd6 {[%emt 0:00:00]} 29. Qf4+ {[%emt 0:00:00]} Kc5 {[%emt 0:00:00]} 30. Nc4 {[%emt 0:00:00]} 1-0